Cogmind - Beta 16 @@@ ROGUE MODE // 2025.11.30 @ 18:50:56 Player: Petvaria Result: Destroyed by Y-64 Sentinel with Wave Gun Performance ------------- Evolutions (5) 2500 Regions Visited (13) 2600 Robots Destroyed (109) 545 Value Destroyed (5077) 5077 Prototype IDs (29) 580 Alien Tech Used (0) 0 Bonus (4427) 4427 TOTAL SCORE: 15729 Bonus ------- High Alert Combat Kills 127 Entered Garrisons 200 Used RIF Installer 500 Entered DSFs 500 Delivered SUBCON Basin 2000 Registered with UFD 300 Met Optimus in HQ 500 Met Data Miner 300 Cogmind --------- Core Integrity 0/1000 Matter 241/300 Energy 14/100 System Corruption 14% Temperature Cool (9) Movement Core (700) Ox13 Location -5/DSF Parts ------- > --- POWER (3) -------- (None) > --- PROPULSION (5) --- (None) > --- UTILITY (5) ------ High-capacity Storage Unit Advanced Targeting Computer Tech Extrapolator > --- WEAPON (4) ------- (None) > --- INVENTORY (20) --- Hybrid Deuterium Engine Advanced Heat Sink Advanced Heat Sink Compact Matter Pod (150) Enhanced Optical Array Improved Shock Absorption System Relay Coupler [NC] (32) Relay Coupler [Grunt] (31) High-powered Tractor Beam Autogun Improved Remote Datajack Peak State ------------ > --- POWER ------------ Fission Core Enhanced Fission Core Enhanced Fission Core > --- PROPULSION ------- Improved Medium Treads Armored Medium Treads Armored Medium Treads Armored Medium Treads Armored Leg > --- UTILITY ---------- High-capacity Storage Unit Advanced Targeting Computer Quantum Capacitor Tech Extrapolator > --- WEAPON ----------- Gauss Rifle Coil Gun Coil Gun Mass Driver > --- INVENTORY -------- Hybrid Deuterium Engine Hybrid Fission Core Reinforced Fission Core Multireflex Exoskeleton Compact Matter Pod Enhanced Optical Array Advanced Recoil Stabilizer Advanced Recoil Stabilizer Relay Coupler [NC] Relay Coupler [Grunt] High-powered Tractor Beam Cooled Plasma Rifle Cooled Plasma Rifle Cooled Plasma Rifle Cooled Plasma Rifle Mass Driver Improved Remote Datajack [Rating: 100] Favorites ----------- Power Light Angular Momentum Engine Engine Light Angular Momentum Engine Power Core Enhanced Fission Core Reactor Light Antimatter Reactor Propulsion Armored Medium Treads Treads Armored Medium Treads Leg Carbon-fiber Leg Wheel Compact Wheel Utility High-capacity Storage Unit Device Cooling System Storage High-capacity Storage Unit Processor Advanced Targeting Computer Protection Insulated Plating Weapon Heavy Flak Cannon Energy Gun Cooled Plasma Rifle Energy Cannon Heavy Plasma Cannon Ballistic Gun Assault Rifle Ballistic Cannon Heavy Flak Cannon Special Weapon Junk Cannon Slashing Weapon Ripper Build | -11 -10 -10 -9 -9 -6 -6 -6 -6 -5 -5 -5 -5 -5 ------- Run | Yrd Mat Sub Rec Scr Fac Low Low Dat Pro Fac Gar Fac DSF Slots Evolved 10 | . . . . . 8 . . . . 2 . . . Power 2 | . . . . . . . . . . 2 . . . Propulsion 3 | . . . . . 3 . . . . . . . . Utility 3 | . . . . . 3 . . . . . . . . Weapon 2 | . . . . . 2 . . . . . . . . Parts Attached 111 | 8 3 11 . 10 18 1 . . 4 15 35 . 6 Power 18 | 1 1 1 . 2 1 . . . 1 5 6 . . Engine 8 | 1 . 1 . 2 1 . . . . 1 2 . . Core 9 | . 1 . . . . . . . 1 4 3 . . Reactor 1 | . . . . . . . . . . . 1 . . Propulsion 28 | 3 . 3 . 2 7 . . . . . 11 . 2 Treads 14 | 2 . . . 2 5 . . . . . 5 . . Leg 10 | . . . . . 2 . . . . . 6 . 2 Wheel 4 | 1 . 3 . . . . . . . . . . . Hover . | . . . . . . . . . . . . . . Flight . | . . . . . . . . . . . . . . Utility 22 | 2 1 . . 2 5 1 . . . 4 7 . . Device 13 | 1 . . . . 2 1 . . . 3 6 . . Storage 2 | 1 1 . . . . . . . . . . . . Processor 3 | . . . . . 2 . . . . 1 . . . Hackware . | . . . . . . . . . . . . . . Protection 4 | . . . . 2 1 . . . . . 1 . . Artifact . | . . . . . . . . . . . . . . Weapon 43 | 2 1 7 . 4 5 . . . 3 6 11 . 4 Energy Gun 11 | 1 1 2 . . 1 . . . . 1 4 . 1 Energy Cannon 3 | . . 2 . . . . . . 1 . . . . Ballistic Gun 20 | 1 . 2 . 3 2 . . . . 5 4 . 3 Ballistic Cannon 7 | . . . . . 2 . . . 2 . 3 . . Launcher . | . . . . . . . . . . . . . . Special Weapon 1 | . . . . 1 . . . . . . . . . Impact Weapon . | . . . . . . . . . . . . . . Slashing Weapon 1 | . . 1 . . . . . . . . . . . Piercing Weapon . | . . . . . . . . . . . . . . Special Melee Weapon . | . . . . . . . . . . . . . . Unidentified Prototypes 5 | . . . . 1 2 . . . . 2 . . . Parts Lost 58 | . . 10 . . . . . . 7 . 25 . 16 Power 10 | . . 2 . . . . . . 1 . 4 . 3 Propulsion 16 | . . 3 . . . . . . . . 7 . 6 Utility 8 | . . 1 . . . . . . 2 . 4 . 1 Weapon 24 | . . 4 . . . . . . 4 . 10 . 6 Highest Loss Streak 16 | . . 6 . . . . . . 3 . 14 . 16 To Critical Strikes . | . . . . . . . . . . . . . . Average Backups 15 | 4 9 7 2 17 17 17 17 17 14 16 18 20 17 Power 2 | . 1 . . 1 3 3 3 3 2 2 2 2 1 Propulsion 1 | 2 4 2 . 1 1 2 2 2 2 2 1 3 2 Utility 4 | . . . . 3 5 6 6 6 6 6 8 7 7 Weapon 5 | . 4 4 2 9 6 6 6 6 3 4 5 7 4 Tool/Special . | . . . . . . . . . . . . . . Unused Backups 37 | . . 3 . 9 6 1 . . . 8 2 . 8 Power 1 | . . . . . 1 . . . . . . . . Propulsion 1 | . . . . . . . . . . . 1 . . Utility 15 | . . 1 . . 1 1 . . . 5 1 . 6 Weapon 15 | . . 2 . 8 2 . . . . 2 . . 1 Tool/Special 5 | . . . . 1 2 . . . . 1 . . 1 Average Slot Usage (%) 93 | . 100 82 71 96 96 100 100 100 90 92 94 94 77 Engine 6 | . 10 11 . 13 6 6 6 6 3 . 4 . . Core 3 | . 3 . . . . . . . 2 13 8 5 4 Treads 18 | . 28 2 . . 28 33 33 33 33 27 9 . . Leg 2 | . . . . . 1 . . . . 1 16 29 21 Wheel 8 | . . 25 28 27 1 . . . . . . . . Device 5 | . 14 . . . 9 7 6 6 6 8 6 5 5 Storage 8 | . 14 14 14 14 6 6 6 6 6 5 5 5 5 Processor 4 | . . . . . 2 6 6 6 6 9 11 11 11 Protection 6 | . . . . 12 12 11 13 13 6 . 3 5 3 Energy Gun 3 | . 15 3 . . 1 . . . . . 12 17 11 Energy Cannon 1 | . . 9 . . . . . . 2 2 . . . Ballistic Gun 12 | . 12 13 14 13 19 20 20 20 5 13 7 5 4 Ballistic Cannon 4 | . . . . . 4 6 6 6 14 5 1 . 1 Slashing Weapon 2 | . . . 14 10 . . . . . . . . . Peak Build Rating 100 | 7 10 26 26 26 75 75 73 73 76 98 100 75 75 Average Rating 51 | 4 8 15 24 16 66 73 73 73 67 84 80 75 56 On Entrance 47 | . 7 10 26 9 20 73 73 73 73 60 93 75 75 Avg Prop Armor Cover (%) 5 | . . . . . 7 4 4 4 4 3 7 . . Naked Turns . | . . . . . . . . . . . . . . Heaviest Build 103 | 15 50 52 44 64 87 83 83 83 91 101 103 86 86 Greatest Support 138 | 40 40 40 32 32 131 111 111 111 138 138 111 75 75 Greatest Overweight (x) 13 | . 1 2 1 1 4 . . . . . 3 1 13 Average Overweight (x) . | . . 1 1 1 . . . . . . 1 1 1 Largest Inventory Capacity 20 | 8 20 20 20 20 20 20 20 20 20 20 20 20 20 Average Capacity 19 | 5 19 20 20 20 20 20 20 20 20 20 20 20 20 Most Carried 20 | 7 13 20 20 20 20 20 20 20 20 20 20 20 20 Average Carried 17 | 4 9 14 16 17 19 19 20 20 17 18 18 20 17 Final Capacity 20 | 8 20 20 20 20 20 20 20 20 20 20 20 20 20 Final Carried 20 | 6 13 17 6 20 20 20 20 20 16 20 20 20 11 Class Distribution -------------------- 38% | Mutant 26% | Tank 20% | Gunner 10% | Scavenger-Gunner 3% | Derelict-Tank Dominant Class ---------------- Mutant | -10/Materials Mutant | -10/Subcaves Mutant | -9/Recycling Mutant | -9/Scraptown Tank | -6/Factory Tank | -6/Lower Caves Tank | -6/Lower Caves Tank | -6/Data Miner Tank | -5/Proximity Caves Gunner | -5/Factory Scavenger-Gunner | -5/Garrison Scavenger-Gunner | -5/Factory Scavenger-Gunner | -5/DSF Resources | -11 -10 -10 -9 -9 -6 -6 -6 -6 -5 -5 -5 -5 -5 ----------- Run | Yrd Mat Sub Rec Scr Fac Low Low Dat Pro Fac Gar Fac DSF Matter Collected 4331 | 307 121 78 50 120 752 76 114 . 734 662 1276 . 41 Remotely 323 | . . . . . . . . . . . 323 . . Salvage Created 5999 | 105 366 212 86 . 1118 . 119 . 653 1683 1500 . 157 Parts 246 | 6 29 9 2 . 44 . 4 . 16 60 64 . 12 Haulers Intercepted 1 | . . . . . . . . . . 1 . . . Recyclers Shooed 10 | 2 1 . . . . . . . . 7 . . . Parts Field Recycled . | . . . . . . . . . . . . . . Retrieved Matter . | . . . . . . . . . . . . . . Parts Self-Destructed 32 | . . 10 . . . . 6 . 16 . . . . Prevented . | . . . . . . . . . . . . . . Parts Restored . | . . . . . . . . . . . . . . Kills | -11 -10 -10 -9 -9 -6 -6 -6 -6 -5 -5 -5 -5 -5 ------- Run | Yrd Mat Sub Rec Scr Fac Low Low Dat Pro Fac Gar Fac DSF Combat Hostiles Destroyed 82 | . 10 7 . . 9 . 2 . 16 6 29 . 3 Guns 56 | . 10 5 . . 4 . 1 . 6 5 23 . 2 Cannons 24 | . . 2 . . 5 . 1 . 10 1 5 . . Classes Destroyed 18 | 2 4 1 . . 4 . . . 3 2 . . 2 Worker 4 | . 2 . . . . . . . . 2 . . . Builder 1 | . . . . . 1 . . . . . . . . Tunneler 1 | 1 . . . . . . . . . . . . . Hauler 1 | . . . . . . . . . . 1 . . . Recycler 17 | 1 1 . 1 . 5 . . . . 9 . . . Mechanic 1 | . . . . . . . . . . 1 . . . Watcher 2 | . 1 . . . 1 . . . . . . . . Swarmer 16 | . 6 3 . . . . . . . . 7 . . Cutter 1 | . . . . . . . . . . . . . 1 Grunt 32 | . 4 2 . . 3 . 1 . 9 . 13 . . Brawler 2 | . . . . . . . . . 1 . 1 . . Duelist 5 | . . . . . 2 . 1 . 1 . 1 . . Sentry 7 | . . . . . 1 . . . 1 . 4 . 1 Specialist 1 | . . . . . . . . . . . . . 1 Hunter 7 | . . . . . . . . . 3 2 2 . . Programmer 7 | . . . . . 3 . . . . 4 . . . Behemoth 2 | . . . . . . . . . 1 . 1 . . Subdweller 2 | . . 2 . . . . . . . . . . . Best Kill Streak 10 | 1 4 2 1 . 4 . 2 . 4 4 10 . 2 Combat Bots Only 10 | . 4 2 . . 3 . 2 . 4 2 10 . 2 Max Kills in Single Turn 2 | 1 2 1 1 . 2 . 1 . 1 2 2 . 1 Gunslinging 1 | . . . . . . . . . . . 1 . . Exploded . | . . . . . . . . . . . . . . Melee . | . . . . . . . . . . . . . . Uniques/NPCs Destroyed . | . . . . . . . . . . . . . . Combat | -11 -10 -10 -9 -9 -6 -6 -6 -6 -5 -5 -5 -5 -5 -------- Run | Yrd Mat Sub Rec Scr Fac Low Low Dat Pro Fac Gar Fac DSF Hostile Shots Fired 813 | . 48 82 . . 59 . 7 . 101 87 341 . 88 Missed 196 | . 12 16 . . 17 . 1 . 24 22 84 . 20 Hits 617 | . 36 66 . . 42 . 6 . 77 65 257 . 68 Melee 24 | . . . . . . . . . . . 8 . 16 Projectile 593 | . 36 66 . . 42 . 6 . 77 65 249 . 52 AOE 1 | . . . . . . . . . . . . . 1 Critical Strikes 35 | . . 2 . . 1 . . . 2 3 13 . 14 Part Disruptions 1 | . . . . . . . . . . 1 . . . Damage Taken 11188 | . 362 898 . . 497 . 110 . 1515 935 4725 . 2146 Core 1410 | . 39 201 . . 41 . . . 108 55 489 . 477 Absorbed by Shields 302 | . . . . . . . . . . 179 123 . . Ignored by Resistances 75 | . . . . . 75 . . . . . . . . Core Remaining (%) 62 | 100 . . . 4 . . . . 82 . . . . Volleys Fired 279 | 9 36 41 . . 31 . 6 . 39 42 63 . 12 Largest 4 | 2 2 2 . . 4 . 4 . 4 4 4 . 4 Hottest 211 | 70 90 100 . . 133 . 127 . 162 211 154 . 193 Shots Fired 792 | 18 72 53 . . 117 1 24 . 147 117 211 . 32 Gun 621 | 18 72 42 . . 92 1 18 . 71 97 181 . 29 Cannon 171 | . . 11 . . 25 . 6 . 76 20 30 . 3 Launcher . | . . . . . . . . . . . . . . Special . | . . . . . . . . . . . . . . Kinetic 601 | 9 35 32 . . 113 1 24 . 147 101 124 . 15 Thermal 187 | 9 37 21 . . . . . . . 16 87 . 17 Explosive . | . . . . . . . . . . . . . . Electromagnetic 4 | . . . . . 4 . . . . . . . . Robot Hit Streak 18 | 4 11 15 . . 14 . 7 . 12 18 17 . 11 Robot Miss Streak 6 | 3 4 5 . . 5 1 4 . 6 4 4 . 3 Penetration Max 2 | . . . . . 2 . 1 . 1 1 1 . . Secondary Targets 16 | . . 1 . . . . . . . 1 12 . 2 Max Gunslinging Chain 2 | . . 1 . . . . . . . 1 2 . 1 Shots Hit Robots 539 | 12 39 32 1 . 83 . 17 . 114 80 141 . 20 Core Hits 308 | 3 21 15 . . 51 . 11 . 102 39 59 . 7 Critical Kills 5 | . . . . . 3 . . . 1 . 1 . . Critical Parts Destroyed 10 | . . . . . 3 . 1 . 4 1 1 . . Critical Strikes 29 | 2 3 . . . 6 . 1 . 5 1 9 . 2 Burn 10 | 2 3 . . . . . . . . . 3 . 2 Destroy 15 | . . . . . 6 . 1 . 5 1 2 . . Blast 4 | . . . . . . . . . . . 4 . . Melee Attacks 22 | . . 11 11 . . . . . . . . . . Impact . | . . . . . . . . . . . . . . Slashing 22 | . . 11 11 . . . . . . . . . . Piercing . | . . . . . . . . . . . . . . Sneak Attacks 1 | . . . 1 . . . . . . . . . . Combat Hostiles . | . . . . . . . . . . . . . . Follow-up Attacks . | . . . . . . . . . . . . . . Damage Inflicted 11608 | 154 530 385 60 . 1578 . 234 . 2241 2334 3539 . 553 Guns 8178 | 154 529 270 . . 1091 . 128 . 851 1910 2750 . 495 Cannons 3245 | . . 115 . . 487 . 106 . 1390 300 789 . 58 Explosions 110 | . . . . . . . . . . 110 . . . Melee 60 | . . . 60 . . . . . . . . . . Ramming 15 | . 1 . . . . . . . . 14 . . . Kinetic 8682 | 92 180 168 . . 1463 . 234 . 2241 1910 2217 . 177 Thermal 2736 | 62 349 217 . . . . . . . 410 1322 . 376 Explosive . | . . . . . . . . . . . . . . Electromagnetic 115 | . . . . . 115 . . . . . . . . Impact . | . . . . . . . . . . . . . . Slashing 60 | . . . 60 . . . . . . . . . . Piercing . | . . . . . . . . . . . . . . Highest Corruption 14 | . . . . . 3 3 . . . 9 14 14 14 Average Corruption 8 | . . . . . 2 2 . . . 4 13 14 14 Corruption Purged 3 | . . . . . . 3 . . . . . . . Corruption Blocked . | . . . . . . . . . . . . . . Effects 132 | . . . . . 19 6 . . . 16 85 1 5 Message Errors 18 | . . . . . . . . . . 4 12 1 1 Matter Fused 22 | . . . . . 4 . . . . 3 15 . . Heat Flow Errors 18 | . . . . . 3 1 . . . 1 11 . 2 Energy Discharges 14 | . . . . . 2 3 . . . 1 8 . . Parts Rejected 1 | . . . . . . . . . . . 1 . . Parts Fused 2 | . . . . . . . . . . . 2 . . Data Loss (minor) 21 | . . . . . 9 1 . . . 2 8 . 1 Data Loss (major) 5 | . . . . . . . . . . 1 4 . . Misfires 10 | . . . . . . 1 . . . 1 8 . . Alerts 3 | . . . . . . . . . . 1 2 . . Weapon Failures 18 | . . . . . 1 . . . . 2 14 . 1 Overload Shots 4 | . . . . . . . . . . . . . 4 Overflow Damage 94 | . . 14 30 . . . . . . 50 . . . Projectiles 14 | . . 14 . . . . . . . . . . . Explosions 50 | . . . . . . . . . . 50 . . . Melee 30 | . . . 30 . . . . . . . . . . Knockbacks 43 | . . . . . 17 . 5 . 17 . 2 . 2 Impact . | . . . . . . . . . . . . . . Kinetic 43 | . . . . . 17 . 5 . 17 . 2 . 2 Secondary . | . . . . . . . . . . . . . . Self-Inflicted Damage . | . . . . . . . . . . . . . . Shots . | . . . . . . . . . . . . . . Rammed 4 | . 1 . . . . . . . . 3 . . . Targets Rammed 5 | . 1 . . . . . . . . 4 . . . Kicked . | . . . . . . . . . . . . . . Crushed 1 | . . . . . . . . . . 1 . . . Highest Temperature 438 | . 135 53 . . 242 201 27 . 131 256 438 . 169 Average Temperature 65 | . 47 22 . . 24 107 12 . 32 26 136 . 68 Received Heat Transfer 1839 | . 117 231 . . 60 . 54 . 345 45 933 . 54 Effects 10 | . . . . . . . . . . . 10 . . Shutdowns 3 | . . . . . . . . . . . 3 . . Energy Bleed 1 | . . . . . . . . . . . 1 . . Interference 3 | . . . . . . . . . . . 3 . . Matter Decay 1 | . . . . . . . . . . . 1 . . Damage (minor) 2 | . . . . . . . . . . . 2 . . Siege Activations . | . . . . . . . . . . . . . . Martial Activations . | . . . . . . . . . . . . . . Shielding Activations . | . . . . . . . . . . . . . . Robots Disrupted . | . . . . . . . . . . . . . . Combat Hostiles . | . . . . . . . . . . . . . . Robots Corrupted . | . . . . . . . . . . . . . . Combat Hostiles . | . . . . . . . . . . . . . . Parts Fried 1 | . . . . . 1 . . . . . . . . Impact Corruptions . | . . . . . . . . . . . . . . Robots Melted 2 | . . . . . . . . . . . 1 . 1 Combat Hostiles 2 | . . . . . . . . . . . 1 . 1 Parts Melted 14 | . 3 . . . . . . . . 2 8 . 1 Heat Transferred 6530 | 333 1258 409 . . . . . . . 500 3050 . 980 Parts Sabotaged . | . . . . . . . . . . . . . . Parts Stolen . | . . . . . . . . . . . . . . Parts Stripped . | . . . . . . . . . . . . . . Power Chain Reactions . | . . . . . . . . . . . . . . Alert | -11 -10 -10 -9 -9 -6 -6 -6 -6 -5 -5 -5 -5 -5 ------- Run | Yrd Mat Sub Rec Scr Fac Low Low Dat Pro Fac Gar Fac DSF Maximum Alert Level 3 | . . . . . . . . . . . 3 2 1 Low Security (%) 75 | 100 100 . 100 . 100 . . . . 100 18 . . Level 1 10 | . . . . . . . . . . . 32 . 100 Level 2 10 | . . . . . . . . . . . 35 100 . Level 3 3 | . . . . . . . . . . . 12 . . Level 4 . | . . . . . . . . . . . . . . Level 5 . | . . . . . . . . . . . . . . High Security . | . . . . . . . . . . . . . . Max Security . | . . . . . . . . . . . . . . Peak Influence 916 | 5 111 . 38 . 112 . . . . 110 916 480 356 Initial 480 | . . . 38 . . . . . . . 55 480 336 Average 145 | . 42 . 3 . 19 . . . . 44 422 480 323 Influence Increases 2794 | 10 264 230 15 . 300 . 65 . 370 369 1111 . 60 Destroy 0b10 Robot/C 1600 | . 200 100 . . 180 . 40 . 320 120 580 . 60 Destroy 0b10 Robot/NC 135 | 10 20 . 5 . 35 . . . . 65 . . . Destroy Leader 246 | . 42 10 . . 52 . 10 . 50 32 50 . . Disable Machine 120 | . . . . . . . . . . 120 . . . Anti-Garrison Action 450 | . . . . . . . . . . . 450 . . Destroy Structure 63 | . 2 . 10 . 3 . . . . 32 16 . . Lose Combat Pursuer 180 | . . 120 . . 30 . 15 . . . 15 . . Influence Decreases 2558 | 10 250 163 96 . 200 100 50 15 370 290 274 436 304 Entered New Map 706 | . . 7 43 . . 37 . 15 . . 24 436 144 Time Decay 1374 | 10 250 116 53 . 200 63 50 . 342 290 . . . Lost Part 478 | . . 40 . . . . . . 28 . 250 . 160 Squads Dispatched 7 | . 1 . . . 2 . . . . 3 . . 1 Investigation 1 | . . . . . . . . . . 1 . . . Extermination 4 | . . . . . 2 . . . . 2 . . . Reinforcement 2 | . 1 . . . . . . . . . . . 1 Assault . | . . . . . . . . . . . . . . Garrison . | . . . . . . . . . . . . . . Intercept . | . . . . . . . . . . . . . . Searches Triggered . | . . . . . . . . . . . . . . Construction Impeded . | . . . . . . . . . . . . . . Haulers Reinforced . | . . . . . . . . . . . . . . Active Scanning Responses . | . . . . . . . . . . . . . . Cargo Convoy Interrupts . | . . . . . . . . . . . . . . Stealth | -11 -10 -10 -9 -9 -6 -6 -6 -6 -5 -5 -5 -5 -5 --------- Run | Yrd Mat Sub Rec Scr Fac Low Low Dat Pro Fac Gar Fac DSF Distress Signals 4 | . 2 . . . 1 . . . . 1 . . . Communications Jammed . | . . . . . . . . . . . . . . Distress Signals . | . . . . . . . . . . . . . . Times Spotted 115 | . 17 11 . . 10 . 3 . 16 18 31 . 9 Peak Tracking Total 13 | . 6 5 . . 4 . 3 . 4 6 13 . 7 Tactical Retreats 8 | . . 4 . . 2 . 1 . . . 1 . . Traps | -11 -10 -10 -9 -9 -6 -6 -6 -6 -5 -5 -5 -5 -5 ------- Run | Yrd Mat Sub Rec Scr Fac Low Low Dat Pro Fac Gar Fac DSF Traps Triggered 2 | . . . . . . . . . . . 2 . . Indirectly . | . . . . . . . . . . . . . . Trap Hack Attempts . | . . . . . . . . . . . . . . Triggered . | . . . . . . . . . . . . . . Disarmed . | . . . . . . . . . . . . . . Reprogrammed . | . . . . . . . . . . . . . . Reused . | . . . . . . . . . . . . . . Traps Extracted . | . . . . . . . . . . . . . . Installed . | . . . . . . . . . . . . . . Triggered . | . . . . . . . . . . . . . . Most Traps Carried 1 | . . . . . . 1 1 1 1 1 . . . Machines | -11 -10 -10 -9 -9 -6 -6 -6 -6 -5 -5 -5 -5 -5 ---------- Run | Yrd Mat Sub Rec Scr Fac Low Low Dat Pro Fac Gar Fac DSF Machines Disabled 12 | . . . . . . . . . . 8 4 . . Max in Single Turn 5 | . . . . . . . . . . 5 1 . . Garrison Access 1 | . . . . . 1 . . . . . . . . Garrison Relay 4 | . . . . . . . . . . . 4 . . Machines Repaired . | . . . . . . . . . . . . . . Machines Dismantled . | . . . . . . . . . . . . . . Machines Sabotaged . | . . . . . . . . . . . . . . Overloaded Fab Kills . | . . . . . . . . . . . . . . Hacking | -11 -10 -10 -9 -9 -6 -6 -6 -6 -5 -5 -5 -5 -5 --------- Run | Yrd Mat Sub Rec Scr Fac Low Low Dat Pro Fac Gar Fac DSF Machines Accessed 16 | . . 3 . 2 2 . . 3 . 3 2 1 . Terminals 4 | . . . . . . . . . . 1 2 1 . Fabricators 1 | . . . . . 1 . . . . . . . . Repair Stations 1 | . . . . . . . . . . 1 . . . Recycling Units . | . . . . . . . . . . . . . . Scanalyzers . | . . . . . . . . . . . . . . Garrison Access 2 | . . . . . 1 . . . . 1 . . . Total Hacks 53 | . . 7 . 9 3 . . 23 . 6 4 1 . Successful 43 | . . 7 . 9 2 . . 23 . 1 . 1 . Failed 10 | . . . . . 1 . . . . 5 4 . . Catastrophic 4 | . . . . . . . . . . 2 2 . . Database Lockouts . | . . . . . . . . . . . . . . Manual 3 | . . . . . . . . . . 3 . . . Terminals 8 | . . . . . . . . . . 3 4 1 . Fabricators 2 | . . . . . 2 . . . . . . . . Repair Stations 1 | . . . . . . . . . . 1 . . . Recycling Units . | . . . . . . . . . . . . . . Scanalyzers . | . . . . . . . . . . . . . . Garrison Access 3 | . . . . . 1 . . . . 2 . . . Terminal Hacks 40 | . . 7 . 9 . . . 23 . . . 1 . Record 7 | . . 5 . . . . . 2 . . . . . Part Schematic 11 | . . . . . . . . 11 . . . . . Robot Schematic 7 | . . . . . . . . 7 . . . . . Robot Analysis 8 | . . . . 8 . . . . . . . . . Prototype ID Bank 3 | . . . . . . . . 3 . . . . . Open Door 1 | . . 1 . . . . . . . . . . . Open DSF 1 | . . . . . . . . . . . . 1 . Proto ID Catalog 1 | . . . . 1 . . . . . . . . . Release Object 1 | . . 1 . . . . . . . . . . . Fabricator Hacks 1 | . . . . . 1 . . . . . . . . Network Status 1 | . . . . . 1 . . . . . . . . Repair Station Hacks . | . . . . . . . . . . . . . . Recycling Unit Hacks . | . . . . . . . . . . . . . . Scanalyzer . | . . . . . . . . . . . . . . Garrison Access Hacks 2 | . . . . . 1 . . . . 1 . . . Unlock Access 1 | . . . . . . . . . . 1 . . . Seal Access 1 | . . . . . 1 . . . . . . . . Unauthorized Hacks . | . . . . . . . . . . . . . . Terminals . | . . . . . . . . . . . . . . Fabricators . | . . . . . . . . . . . . . . Repair Stations . | . . . . . . . . . . . . . . Recycling Units . | . . . . . . . . . . . . . . Scanalyzers . | . . . . . . . . . . . . . . Garrison Access . | . . . . . . . . . . . . . . Data Cores Recovered . | . . . . . . . . . . . . . . Used . | . . . . . . . . . . . . . . Hacking Detections 6 | . . . . . 1 . . . . 3 2 . . Full Trace Events 2 | . . . . . . . . . . 1 1 . . Feedback Events . | . . . . . . . . . . . . . . Feedback Blocked . | . . . . . . . . . . . . . . Robot Schematics Acquired 7 | . . . . . . . . 7 . . . . . Robots Built . | . . . . . . . . . . . . . . Authchips . | . . . . . . . . . . . . . . Time . | . . . . . . . . . . . . . . Total Robot Build Rating . | . . . . . . . . . . . . . . Part Schematics Acquired 20 | . . . . . . . . 11 . 3 5 . 1 Parts Built . | . . . . . . . . . . . . . . Authchips . | . . . . . . . . . . . . . . Time . | . . . . . . . . . . . . . . Total Part Build Rating . | . . . . . . . . . . . . . . Part Studies Acquired . | . . . . . . . . . . . . . . Parts Repaired . | . . . . . . . . . . . . . . Time . | . . . . . . . . . . . . . . Parts Recycled . | . . . . . . . . . . . . . . Recycled Matter . | . . . . . . . . . . . . . . Retrieved Matter . | . . . . . . . . . . . . . . Retrieved Components . | . . . . . . . . . . . . . . Parts Scanalyzed . | . . . . . . . . . . . . . . Part Schematics Acquired . | . . . . . . . . . . . . . . Parts Damaged . | . . . . . . . . . . . . . . Bothacking | -11 -10 -10 -9 -9 -6 -6 -6 -6 -5 -5 -5 -5 -5 ------------ Run | Yrd Mat Sub Rec Scr Fac Low Low Dat Pro Fac Gar Fac DSF Used RIF Installer 1 | . . . . . . . . . . . 1 . . Robots Hacked . | . . . . . . . . . . . . . . Non-combat . | . . . . . . . . . . . . . . Combat . | . . . . . . . . . . . . . . Robot Hacks Applied . | . . . . . . . . . . . . . . Relay Couplers Released 15 | . . . . . . . . . . . 15 . . Machine Destruction 15 | . . . . . . . . . . . 15 . . Fabnet Peak Effective % . | . . . . . . . . . . . . . . Robots Rewired . | . . . . . . . . . . . . . . Allies Hacked . | . . . . . . . . . . . . . . Hacks Repelled . | . . . . . . . . . . . . . . Allies | -11 -10 -10 -9 -9 -6 -6 -6 -6 -5 -5 -5 -5 -5 -------- Run | Yrd Mat Sub Rec Scr Fac Low Low Dat Pro Fac Gar Fac DSF Total Allies . | . . . . . . . . . . . . . . Largest Group . | . . . . . . . . . . . . . . Highest-Rated Group . | . . . . . . . . . . . . . . Highest-Rated Ally . | . . . . . . . . . . . . . . Total Orders . | . . . . . . . . . . . . . . Ally Attacks . | . . . . . . . . . . . . . . Total Damage . | . . . . . . . . . . . . . . Kills . | . . . . . . . . . . . . . . Allies Corrupted . | . . . . . . . . . . . . . . Allies Melted . | . . . . . . . . . . . . . . Intel | -11 -10 -10 -9 -9 -6 -6 -6 -6 -5 -5 -5 -5 -5 ------- Run | Yrd Mat Sub Rec Scr Fac Low Low Dat Pro Fac Gar Fac DSF Active Infowar (turns) 876 | 35 797 44 . . . . . . . . . . . Seismic 876 | 35 797 44 . . . . . . . . . . . Robot Analysis Total 8 | . . . . 8 . . . . . . . . . Derelict Logs Recovered 5 | . . . . . . 1 2 . 2 . . . . Drone Launches . | . . . . . . . . . . . . . . Drone Recoveries . | . . . . . . . . . . . . . . Exploration | -11 -10 -10 -9 -9 -6 -6 -6 -6 -5 -5 -5 -5 -5 ------------- Run | Yrd Mat Sub Rec Scr Fac Low Low Dat Pro Fac Gar Fac DSF Turns Passed 12685 | 108 797 903 506 2380 2040 450 360 127 2021 1042 1866 4 81 Spaces Moved 6938 | 43 258 671 408 1981 975 219 204 77 866 495 720 3 18 Core 9 | 8 . . . . . . . . . . . . 1 Treads 3003 | 31 258 8 . . 710 219 204 77 866 495 135 . . Legs 679 | . . . . . 74 . . . . . 585 3 17 Wheels 3247 | 4 . 663 408 1981 191 . . . . . . . . Hover . | . . . . . . . . . . . . . . Flight . | . . . . . . . . . . . . . . Fastest Speed 50 | 50 160 110 115 115 130 167 167 167 167 167 167 190 190 Average Speed 153 | 133 236 111 115 115 188 167 167 167 167 167 210 190 218 Slowest Speed 700 | 160 240 240 115 115 400 167 167 167 168 168 400 190 700 Overloaded Moves . | . . . . . . . . . . . . . . Propulsion Burnouts . | . . . . . . . . . . . . . . Robots Hopped . | . . . . . . . . . . . . . . Potential Cave-ins . | . . . . . . . . . . . . . . Cave-ins Triggered . | . . . . . . . . . . . . . . Exploration Rate (%) 48 | 4 52 31 79 94 16 39 37 68 96 16 66 . 32 Regions Visited 13 Branch Regions 7 Pre-discovered Areas 2 | . . . . . . . . 1 1 . . . . Known Exits Taken 3 | . . . . . 1 . . . . 1 . 1 . Unknown Exits Taken 9 | 1 1 1 1 1 . 1 1 1 1 . . . . Scrap Searched 14 | . . 1 . 9 . 2 1 . 1 . . . . Spaces Dug 20 | . . 9 10 . . . . . . 1 . . . Terrain Destroyed 48 | . . 13 10 . . . . . . 16 9 . . Melee 19 | . . 9 10 . . . . . . . . . . Projectile 20 | . . 4 . . . . . . . 7 9 . . AOE 8 | . . . . . . . . . . 8 . . . Terrain Rammed . | . . . . . . . . . . . . . . Walls Destroyed . | . . . . . . . . . . . . . . Machines Disabled . | . . . . . . . . . . . . . . Actions | -11 -10 -10 -9 -9 -6 -6 -6 -6 -5 -5 -5 -5 -5 --------- Run | Yrd Mat Sub Rec Scr Fac Low Low Dat Pro Fac Gar Fac DSF Total 8376 | 77 370 758 430 2093 1111 305 209 76 1346 628 928 2 43 Wait 727 | 4 63 12 1 49 27 77 . . 438 23 33 . . Move 6926 | 42 257 670 407 1980 974 218 203 76 865 495 719 2 18 Hop . | . . . . . . . . . . . . . . Pick Up 152 | 12 8 5 7 31 26 4 . . . 23 34 . 2 Fast Attach 30 | 3 . . . 2 8 . . . . 9 8 . . Attach 74 | 4 . 8 . 3 11 1 . . 4 5 27 . 11 Detach 2 | . . . . 1 . . . . . . 1 . . Swap 43 | 1 4 4 . 7 6 1 . . . 5 15 . . Drop 107 | 2 1 7 4 20 28 4 . . . 23 18 . . Fire 279 | 9 36 41 . . 31 . 6 . 39 42 63 . 12 Melee 22 | . . 11 11 . . . . . . . . . . Ram . | . . . . . . . . . . . . . . Kick . | . . . . . . . . . . . . . . Crush 4 | . 1 . . . . . . . . 3 . . . Escape Stasis 10 | . . . . . . . . . . . 10 . . Rewire . | . . . . . . . . . . . . . . Trap . | . . . . . . . . . . . . . . Miscellaneous . | . . . . . . . . . . . . . . Route ------- -11/Scrapyard -10/Materials (discovered 3 exits: [*Mat] / [*Min] / *Sub) -10/Subcaves (discovered 2 exits: [*Mat] / *Rec) -9/Recycling -9/Scraptown (discovered 2 exits: *Fac x2) -6/Factory -6/Lower Caves -6/Lower Caves -6/Data Miner -5/Proximity Caves -5/Factory -5/Garrison (discovered 3 exits: *Fac x3) -5/Factory -5/DSF History --------- Turn | Location | Event 50 | -11/Scrapyard | Discovered new exit (range 16) 109 | -11/Scrapyard | Entered Materials 301 | -10/Materials | Build established: Mutant 393 | -10/Materials | Discovered new exit (range 16) 794 | -10/Materials | Discovered new exit (range 16) 886 | -10/Materials | Discovered new exit (range 4) 906 | -10/Materials | Entered Subcaves 907 | -10/Subcaves | Approached by a straggling Scientist 955 | -10/Subcaves | Core integrity fell below 50% 985 | -10/Subcaves | Lost 6 parts (1p1n1u3w) 1328 | -10/Subcaves | Visited Clippyterm 1331 | -10/Subcaves | Learned Factory trap positions 1331 | -10/Subcaves | Learned Factory emergency access door positions 1416 | -10/Subcaves | Found SUBCON Basin 1549 | -10/Subcaves | Discovered new exit (range 7) 1679 | -10/Subcaves | Core integrity fell below 20% 1740 | -10/Subcaves | Lost 4 parts (1p2n1w) 1805 | -10/Subcaves | Discovered new exit (range 3) 1809 | -10/Subcaves | Entered Recycling 2255 | -9/Recycling | Scanned before Scraplab entrance 2271 | -9/Recycling | Entered Scraplab 2314 | -9/Recycling | Discovered new exit (range 2) 2315 | -9/Recycling | Entered Scraptown 2693 | -9/Scraptown | Discovered new exit (range 9) 2734 | -9/Scraptown | Visited Junk Repository 2784 | -9/Scraptown | Visited Bundlers 2908 | -9/Scraptown | Visited Spacefarers 2947 | -9/Scraptown | Visited Cyclists 2998 | -9/Scraptown | Visited Shadow of the Wyrm 3022 | -9/Scraptown | Visited TADAMA 3063 | -9/Scraptown | Visited Supply Room 3220 | -9/Scraptown | Visited UFD Registry 3220 | -9/Scraptown | Registered with UFD as "Zerobrain" 3253 | -9/Scraptown | Entered Cyclist Reading Room 3308 | -9/Scraptown | Visited DA-N13 Charitable Foundation 3319 | -9/Scraptown | Found DCF Scrap (29 items) 3360 | -9/Scraptown | Visited Infowarlord's Domain 3378 | -9/Scraptown | Visited Junk Cannon Lab 3505 | -9/Scraptown | Visited A0-MCA Data Center 3527 | -9/Scraptown | Visited Scrap Suit Storage 3546 | -9/Scraptown | Visited Analyses Database 3566 | -9/Scraptown | Visited Derelict Rescue Squad 3684 | -9/Scraptown | Visited Botcube Research 3710 | -9/Scraptown | Visited Chapter 10 3733 | -9/Scraptown | Visited Science Guys 4160 | -9/Scraptown | Found Prototype Special Weapon 4169 | -9/Scraptown | Identified Junk Cannon 4308 | -9/Scraptown | Given a C+ rating by A0-MCA 4544 | -9/Scraptown | Found A0-MCA's Component Scanner 4632 | -9/Scraptown | Met Optimus 4632 | -9/Scraptown | Accepted into 0bPrime 4691 | -9/Scraptown | Discovered new exit (range 5) 4695 | -9/Scraptown | Entered Factory 4695 | -6/Factory | Evolved 8 slots: Propulsion x3, Utility x3, Weapon x2 4696 | -6/Factory | Loaded intel: 113 trap records 4887 | -6/Factory | Discovered new exit (range 6) 5231 | -6/Factory | Build established: Derelict-Tank 5597 | -6/Factory | Build established: Tank 5967 | -6/Factory | Identified exit to Lower Caves 6735 | -6/Factory | Entered Lower Caves 6736 | -6/Lower Caves | Encountered a Warlord checkpoint 7093 | -6/Lower Caves | Learned Factory interactive machine intel 7158 | -6/Lower Caves | Discovered new exit (range 16) 7185 | -6/Lower Caves | Entered another Lower Caves area 7337 | -6/Lower Caves | Encountered a Warlord checkpoint 7361 | -6/Lower Caves | Learned Factory trap positions 7383 | -6/Lower Caves | Learned Factory garrison access intel 7523 | -6/Lower Caves | Discovered new exit (range 10) 7545 | -6/Lower Caves | Entered Data Miner 7545 | -6/Data Miner | Discovered new exit (range 6) 7577 | -6/Data Miner | Met Data Miner 7619 | -6/Data Miner | Learned location of Section 7 (-2) 7619 | -6/Data Miner | Acquired the access code to Warlord's prototype stash 7632 | -6/Data Miner | Received God Mode back door access code from Data Miner 7672 | -6/Data Miner | Entered Proximity Caves 7694 | -5/Proximity Caves | Learned location of Warlord (-5) 8241 | -5/Proximity Caves | Spotted B-75 Beast 8400 | -5/Proximity Caves | Attracted the attention of an 0b10 checkpoint 8763 | -5/Proximity Caves | Destroyed B-75 Beast 8790 | -5/Proximity Caves | Lost 3 parts (1p1u1w) 8880 | -5/Proximity Caves | Discovered new exit (range 12) 9165 | -5/Proximity Caves | Build established: Gunner 9193 | -5/Proximity Caves | Received a Behemoth hack from an annoying Tinkerer 9693 | -5/Proximity Caves | Entered Factory 9693 | -5/Factory | Evolved 2 slots: Power x2 9694 | -5/Factory | Loaded intel: 91 trap records 9695 | -5/Factory | Loaded intel: 54 interactive machine locations 9696 | -5/Factory | Loaded intel: 4 garrison access locations 10063 | -5/Factory | Tech Extrapolator generated special schematic: Deep Structural Scanner 10116 | -5/Factory | Tech Extrapolator generated special schematic: Machine Rigger 10722 | -5/Factory | Identified exit to Garrison 10735 | -5/Factory | Entered Garrison 10795 | -5/Garrison | Triggered checkpoint 10805 | -5/Garrison | System corruption reached 10% 10810 | -5/Garrison | Garrison Relay disabled 10912 | -5/Garrison | Triggered checkpoint 10954 | -5/Garrison | Found Unknown Device 10955 | -5/Garrison | Identified Quantum Capacitor 11007 | -5/Garrison | Triggered checkpoint 11008 | -5/Garrison | Spotted B-75 Beast 11039 | -5/Garrison | Destroyed B-75 Beast 11101 | -5/Garrison | Lost 7 parts (3n1u3w) 11142 | -5/Garrison | Triggered checkpoint 11252 | -5/Garrison | Core integrity fell below 50% 11273 | -5/Garrison | Lost 14 parts (3p4n2u5w) 11290 | -5/Garrison | Destroyed 10 combat bots 11595 | -5/Garrison | Build established: Scavenger-Gunner 11623 | -5/Garrison | Installed Relay Interface Framework 11651 | -5/Garrison | Triggered checkpoint 11697 | -5/Garrison | Garrison Relay disabled 11774 | -5/Garrison | Discovered new exit (range 11) 11953 | -5/Garrison | Triggered checkpoint 12052 | -5/Garrison | Discovered new exit (range 11) 12115 | -5/Garrison | Triggered checkpoint 12177 | -5/Garrison | Triggered checkpoint 12190 | -5/Garrison | Garrison Relay disabled 12437 | -5/Garrison | Triggered checkpoint 12467 | -5/Garrison | Garrison Relay disabled 12580 | -5/Garrison | Discovered new exit (range 12) 12601 | -5/Garrison | Entered Factory 12605 | -5/Factory | Identified exit to DSF 12605 | -5/Factory | Entered DSF 12639 | -5/DSF | Additional patrols routed to DSF 12674 | -5/DSF | Core integrity fell below 20% 12686 | -5/DSF | Destroyed by Y-64 Sentinel with Wave Gun Last Messages --------------- Acquired 16 matter. Penetrated by Slug. Flexi-carbon Leg severed. Acquired Carbon-fiber Leg. Carbon-fiber Leg destroyed. Knocked back. Tech Extrapolator generates new schematic "Mak. Targeting Computer". Influences: Adv. Targeting Computer, Imp. Targeting Computer, Targeting Computer. Acquired 7 matter. Penetrated by Slug. System corrupted: Heat flow error (+215). Carbon-fiber Leg destroyed. Knocked back. Magnetic Acceleration Cannon destroyed. Autogun severed. Plasma Rifle destroyed. Adv. Heat Sink severed. Acquired 10 matter. Map ----- +----------------------------------------------------+ | | | | | | | | | ?????????????????????????????? | | ?????????????????????????????? | | ?????????????????????????????? | | ?????????????????????????????? | | ?????????????????????????????? | | ?????????????????????????????? | | ?????????????????????????????? | | ?????????????????????????????? | | ?????????????????????????????? | | ????????? ?????????????????? | | ????????? ?????????????????? | | ????????" ?????????????????? | | ????????# #?????????????????? | | ????????# #?????????????????? | | ????????= ?????????????????? | | ????????= ?????????????????? | | ???????## ###????#??????????? | | ???????# ===###!!???????????? | | ???????? =* + ????????????? | | ???????? *===#? #????????????? | | ??# #####%%#??#/#???#????????? | | ??#![@xc!=!#?===#?!!#????????? | | ??#####!![%[ ;!!!## ???? | | ?????#[]%]= Y!= ??? | | ????# #]]!* % H ??? | | ????###]] [/[ ??? | | ??????#!! # # [[## ??????? | | ??????#!! # #??[#????????? | | ??????### ## ##????????????? | | ???????# ###?????????????? | | ???????# #???????????????? | | ???????# #???????????????? | | ???????## ###???????????????? | | ???????# //#???????????????? | | ???????# //#???????????????? | | ???????## ###???????????????? | | ??????### [##???#????????????? | | ????###"" =%##//#///##???????? | | ????""""" =!! ???? | | ????"##"" ???? | | ??????#"""""##//# # ???? | | ??????#"""""#?###????????????? | | ??????####"##????????????????? | | ?????????#"#?????????????????? | | ?????????""#?????????????????? | | ?????????????????????????????? | +----------------------------------------------------+ Best States ------------- Heat Dissipation 76 Energy Generation 50 Energy Capacity 1110 Matter Stores 300 Matter Capacity 300 Sight Range 16 Terrain Scan Density 10 Armor Coverage 375 Resistance: EM 15 Evasion (%) 50 Targeting Accuracy 8 Recoil Reduction 11 Particle Charging 20 Item Schematics ----------------- Combat Drone Bay | -6/Data Miner | Free Lgt. Regenerative Plating | -6/Data Miner | Free Enh. Flexi-carbon Leg | -6/Data Miner | Free Exp. Heat Sink | -6/Data Miner | Free Hvy. Gatling Laser | -6/Data Miner | Free Myomer Leg | -6/Data Miner | Free Adv. Power Amplifier | -6/Data Miner | Free Lyr. Heavy Armor Plating | -6/Data Miner | Free Imp. System Guard | -6/Data Miner | Free Railgun | -6/Data Miner | Free Particle Reactor | -6/Data Miner | Free Deep Structural Scanner | -5/Factory | Extrapolated Machine Rigger | -5/Factory | Extrapolated Mak. Power Source | -5/Factory | Extrapolated Mak. Coolant Network | -5/Garrison | Extrapolated Mak. Core Shielding | -5/Garrison | Extrapolated Mak. Medium Armor Plating | -5/Garrison | Extrapolated Mak. Ablative Armor | -5/Garrison | Extrapolated Bore Cannon | -5/Garrison | Extrapolated Mak. Targeting Computer | -5/DSF | Extrapolated Robot Schematics ------------------ R-10 Processor | -6/Data Miner | Free G-50 Soldier | -6/Data Miner | Free P-70 Sage | -6/Data Miner | Free L-41 Fighter | -6/Data Miner | Free A-27 Freighter | -6/Data Miner | Free W-44 Eye | -6/Data Miner | Free H-66 Slayer | -6/Data Miner | Free Fabricated ------------ Nothing Repaired ---------- Nothing Studied --------- None Alien Tech Used ----------------- None Achievements -------------- Inventory Pressure Scientist At Large Challenges ------------ None Game ------ Seed AblativeFieldthrustThruster Manual? 1 Play Time 01:45:09 Cumulative 345.7 hours Start 2025.11.30 @ 16:31:16 End 2025.11.30 @ 18:50:56 Sessions 3 Manual Loads 0 Difficulty Rogue Special Mode None Game No. 253 Rogue 253 Adventurer 0 Explorer 0 Win Type - Total 27 Types 14/1/7/2/1/0/0/1/0/1 Lore% 95 Gallery% 88 Achievement% 69 Wizard Run 0 Options --------- Layout 1 ASCII 0 Keyboard 0 Movement Numpad Keybinds 0 Fullscreen 1 Font 24/Proggy Map View 50x35 Zoom Use 0% Tactical HUD 0 Map Filters NONE Filters NONE Steam 1 RUN: 29debd57-b659-426c-80ae-acede65e1b96